Cogmind - Beta 16 @@@ ROGUE MODE // 2026.01.01 @ 02:50:06 Player: AngelSpirit Result: Destroyed by QI-6Q0(R) with Subdweller Laser Performance ------------- Evolutions (0) 0 Regions Visited (3) 600 Robots Destroyed (20) 100 Value Destroyed (498) 498 Prototype IDs (12) 240 Alien Tech Used (0) 0 Bonus (96) 96 TOTAL SCORE: 1534 Bonus ------- Follower Combat Kills 96 Cogmind --------- Core Integrity 0/250 Matter 281/300 Energy 250/250 System Corruption 2% Temperature Cool (6) Movement Rolling (115) Ox1 Location -10/Subcaves Parts ------- > --- POWER (1) -------- Ion Engine > --- PROPULSION (2) --- Compact Wheel (fused) Compact Wheel > --- UTILITY (2) ------ High-capacity Storage Unit Light Armor Plating > --- WEAPON (2) ------- Subdweller Laser Subdweller Machine Gun > --- INVENTORY (20) --- Ion Engine Ion Engine Compact Wheel Compact Wheel Flightbrick Scrap Suit High-capacity Matter Pod (200) Light Armor Plating Light Armor Plating Makeshift Light Armor Plating Hacking Suite Beam Cannon Beam Cannon Datajack Shrapnel Trap Peak State ------------ > --- POWER ------------ Ion Engine > --- PROPULSION ------- Compact Wheel Compact Wheel > --- UTILITY ---------- High-capacity Storage Unit Light Armor Plating > --- WEAPON ----------- Subdweller Laser Subdweller Machine Gun > --- INVENTORY -------- Ion Engine Ion Engine Compact Wheel Compact Wheel Flightbrick Scrap Suit High-capacity Matter Pod Light Armor Plating Light Armor Plating Makeshift Light Armor Plating Hacking Suite Beam Cannon Beam Cannon Datajack Shrapnel Trap [Rating: 15] Favorites ----------- Power Light Ion Engine Engine Light Ion Engine Propulsion Compact Wheel Wheel Compact Wheel Utility High-capacity Storage Unit Device Seismic Detector Storage High-capacity Storage Unit Processor Targeting Computer Protection Backup Plating I Weapon Light Cannon Energy Gun Subdweller Laser Energy Cannon Beam Cannon Ballistic Gun Subdweller Machine Gun Ballistic Cannon Light Cannon Build | -11 -10 -10 -10 ------- Run | Yrd Mat Min Sub Slots Evolved . | . . . . Power . | . . . . Propulsion . | . . . . Utility . | . . . . Weapon . | . . . . Parts Attached 25 | 6 14 2 3 Power 4 | 1 2 . 1 Engine 4 | 1 2 . 1 Core . | . . . . Reactor . | . . . . Propulsion 6 | 2 4 . . Treads . | . . . . Leg . | . . . . Wheel 6 | 2 4 . . Hover . | . . . . Flight . | . . . . Utility 6 | 1 3 2 . Device 1 | . . 1 . Storage 2 | 1 1 . . Processor 1 | . 1 . . Hackware . | . . . . Protection 2 | . 1 1 . Artifact . | . . . . Weapon 9 | 2 5 . 2 Energy Gun 2 | 1 . . 1 Energy Cannon 1 | . 1 . . Ballistic Gun 5 | 1 3 . 1 Ballistic Cannon 1 | . 1 . . Launcher . | . . . . Special Weapon . | . . . . Impact Weapon . | . . . . Slashing Weapon . | . . . . Piercing Weapon . | . . . . Special Melee Weapon . | . . . . Unidentified Prototypes . | . . . . Parts Lost 5 | . 5 . . Power 2 | . 2 . . Propulsion 3 | . 3 . . Utility . | . . . . Weapon . | . . . . Highest Loss Streak 3 | . 3 . . To Critical Strikes . | . . . . Average Backups 9 | . 5 11 12 Power 1 | . 1 2 2 Propulsion 1 | . . 1 2 Utility 3 | . 2 5 5 Weapon 1 | . . 2 2 Tool/Special . | . . . . Unused Backups 13 | . . . 13 Power 2 | . . . 2 Propulsion 3 | . . . 3 Utility 5 | . . . 5 Weapon 2 | . . . 2 Tool/Special 1 | . . . 1 Average Slot Usage (%) 97 | . 93 100 100 Engine 13 | . 12 14 14 Wheel 27 | . 26 28 28 Device 4 | . . 13 . Storage 13 | . 13 14 14 Protection 8 | . 12 . 14 Energy Gun 3 | . 3 . 10 Energy Cannon 8 | . 6 14 4 Ballistic Gun 5 | . 8 . 9 Ballistic Cannon 9 | . 8 14 3 Peak Build Rating 15 | 6 8 9 15 Average Rating 8 | 4 6 8 12 On Entrance 5 | . 6 8 9 Avg Prop Armor Cover (%) . | . . . . Naked Turns . | . . . . Heaviest Build 56 | 11 51 52 56 Greatest Support 32 | 32 32 32 32 Greatest Overweight (x) 2 | . 2 1 1 Average Overweight (x) . | . . 1 1 Largest Inventory Capacity 20 | 8 20 20 20 Average Capacity 19 | 7 19 20 20 Most Carried 19 | 1 9 15 19 Average Carried 10 | . 5 12 16 Final Capacity 20 | 8 20 20 20 Final Carried 19 | 1 9 13 19 Class Distribution -------------------- 63% | Mutant 36% | Scavenger-Mutant Dominant Class ---------------- Mutant | -10/Materials Scavenger-Mutant | -10/Mines Mutant | -10/Subcaves Resources | -11 -10 -10 -10 ----------- Run | Yrd Mat Min Sub Matter Collected 928 | 253 394 223 58 Remotely . | . . . . Salvage Created 647 | . 604 . 43 Parts 32 | . 32 . . Haulers Intercepted 1 | . 1 . . Recyclers Shooed . | . . . . Parts Field Recycled . | . . . . Retrieved Matter . | . . . . Parts Self-Destructed . | . . . . Prevented . | . . . . Parts Restored . | . . . . Kills | -11 -10 -10 -10 ------- Run | Yrd Mat Min Sub Combat Hostiles Destroyed 14 | . 13 . 1 Guns 10 | . 10 . . Cannons 4 | . 3 . 1 Classes Destroyed 9 | . 8 . 1 Builder 1 | . 1 . . Tunneler 1 | . 1 . . Hauler 1 | . 1 . . Recycler 1 | . 1 . . Operator 1 | . 1 . . Watcher 1 | . 1 . . Swarmer 3 | . 3 . . Grunt 10 | . 10 . . Subdweller 1 | . . . 1 Best Kill Streak 10 | . 10 . 1 Combat Bots Only 7 | . 7 . 1 Max Kills in Single Turn 2 | . 2 . 1 Gunslinging . | . . . . Exploded . | . . . . Melee . | . . . . Uniques/NPCs Destroyed . | . . . . Combat | -11 -10 -10 -10 -------- Run | Yrd Mat Min Sub Hostile Shots Fired 102 | . 92 4 6 Missed 17 | . 14 2 1 Hits 85 | . 78 2 5 Projectile 85 | . 78 2 5 Damage Taken 1005 | . 869 32 104 Core 266 | . 230 17 19 Absorbed by Shields . | . . . . Redirected to Shielding 39 | . 39 . . Core Remaining (%) 100 | 100 . . . Volleys Fired 102 | . 93 . 9 Largest 2 | . 2 . 2 Hottest 90 | . 90 . 90 Shots Fired 164 | . 149 . 15 Gun 108 | . 99 . 9 Cannon 56 | . 50 . 6 Launcher . | . . . . Special . | . . . . Kinetic 115 | . 109 . 6 Thermal 49 | . 40 . 9 Explosive . | . . . . Electromagnetic . | . . . . Robot Hit Streak 12 | . 12 . 5 Robot Miss Streak 6 | . 6 . 3 Penetration Max . | . . . . Secondary Targets 3 | . 3 . . Max Gunslinging Chain 1 | . 1 . . Shots Hit Robots 100 | . 93 . 7 Core Hits 38 | . 36 . 2 Critical Kills . | . . . . Critical Parts Destroyed 2 | . 2 . . Critical Strikes 3 | . 3 . . Destroy 2 | . 2 . . Blast 1 | . 1 . . Melee Attacks . | . . . . Impact . | . . . . Slashing . | . . . . Piercing . | . . . . Sneak Attacks . | . . . . Combat Hostiles . | . . . . Follow-up Attacks . | . . . . Damage Inflicted 1322 | . 1174 . 148 Guns 670 | . 631 . 39 Cannons 652 | . 543 . 109 Explosions . | . . . . Melee . | . . . . Ramming . | . . . . Kinetic 894 | . 797 . 97 Thermal 428 | . 377 . 51 Explosive . | . . . . Electromagnetic . | . . . . Impact . | . . . . Slashing . | . . . . Piercing . | . . . . Highest Corruption 2 | . 2 2 2 Average Corruption 2 | . 2 2 2 Corruption Purged . | . . . . Corruption Blocked . | . . . . Effects 26 | . . 13 13 Message Errors 8 | . . 3 5 Matter Fused 5 | . . 3 2 Heat Flow Errors 4 | . . 2 2 Energy Discharges 3 | . . 1 2 Parts Fused 2 | . . 1 1 Data Loss (minor) 2 | . . 2 . Data Loss (major) 1 | . . 1 . Alerts 1 | . . . 1 Overload Shots . | . . . . Overflow Damage 25 | . 25 . . Projectiles 25 | . 25 . . Explosions . | . . . . Melee . | . . . . Knockbacks 4 | . 4 . . Impact . | . . . . Kinetic 4 | . 4 . . Secondary . | . . . . Self-Inflicted Damage . | . . . . Shots . | . . . . Rammed . | . . . . Targets Rammed . | . . . . Kicked . | . . . . Crushed . | . . . . Highest Temperature 278 | . 278 148 166 Average Temperature 87 | . 89 70 90 Received Heat Transfer 423 | . 396 9 18 Siege Activations . | . . . . Martial Activations . | . . . . Shielding Activations . | . . . . Robots Disrupted . | . . . . Combat Hostiles . | . . . . Robots Corrupted . | . . . . Combat Hostiles . | . . . . Parts Fried . | . . . . Impact Corruptions . | . . . . Robots Melted . | . . . . Combat Hostiles . | . . . . Parts Melted 2 | . . . 2 Heat Transferred 1073 | . 962 . 111 Parts Sabotaged . | . . . . Parts Stolen . | . . . . Parts Stripped . | . . . . Power Chain Reactions . | . . . . Alert | -11 -10 -10 -10 ------- Run | Yrd Mat Min Sub Maximum Alert Level . | . . . . Low Security (%) 100 | 100 100 100 . Level 1 . | . . . . Level 2 . | . . . . Level 3 . | . . . . Level 4 . | . . . . Level 5 . | . . . . High Security . | . . . . Max Security . | . . . . Peak Influence 125 | . 125 44 . Initial 4 | . . 4 . Average 21 | . 39 2 . Influence Increases 488 | . 421 67 . Destroy 0b10 Robot/C 320 | . 260 60 . Destroy 0b10 Robot/NC 30 | . 30 . . Destroy Leader 44 | . 44 . . Allied During Kill 7 | . . 7 . Successful Hack 25 | . 25 . . Disable Machine 15 | . 15 . . Destroy Structure 2 | . 2 . . Lose Combat Pursuer 45 | . 45 . . Influence Decreases 488 | . 409 79 . Entered New Map 8 | . . 8 . Time Decay 410 | . 359 51 . Lost Part 50 | . 50 . . Lost Ally 20 | . . 20 . Squads Dispatched 4 | . 3 1 . Investigation 1 | . 1 . . Extermination . | . . . . Reinforcement 2 | . 2 . . Assault 1 | . . 1 . Garrison . | . . . . Intercept . | . . . . Searches Triggered . | . . . . Construction Impeded . | . . . . Haulers Reinforced . | . . . . Active Scanning Responses . | . . . . Cargo Convoy Interrupts . | . . . . Stealth | -11 -10 -10 -10 --------- Run | Yrd Mat Min Sub Distress Signals 1 | . 1 . . Communications Jammed . | . . . . Distress Signals . | . . . . Times Spotted 37 | . 29 2 6 Peak Tracking Total 6 | . 6 2 2 Tactical Retreats 4 | . 3 . 1 Traps | -11 -10 -10 -10 ------- Run | Yrd Mat Min Sub Traps Triggered 2 | . 2 . . Indirectly . | . . . . Trap Hack Attempts . | . . . . Triggered . | . . . . Disarmed . | . . . . Reprogrammed . | . . . . Reused . | . . . . Traps Extracted . | . . . . Installed . | . . . . Triggered . | . . . . Most Traps Carried 1 | . . . 1 Machines | -11 -10 -10 -10 ---------- Run | Yrd Mat Min Sub Machines Disabled 2 | . 1 . 1 Max in Single Turn 1 | . 1 . 1 Machines Repaired . | . . . . Machines Dismantled . | . . . . Machines Sabotaged . | . . . . Overloaded Fab Kills . | . . . . Hacking | -11 -10 -10 -10 --------- Run | Yrd Mat Min Sub Machines Accessed 9 | . 8 . 1 Terminals 5 | . 5 . . Fabricators . | . . . . Repair Stations 1 | . 1 . . Recycling Units 2 | . 2 . . Scanalyzers . | . . . . Garrison Access . | . . . . Total Hacks 26 | . 25 . 1 Successful 13 | . 12 . 1 Failed 13 | . 13 . . Catastrophic 1 | . 1 . . Database Lockouts . | . . . . Manual 15 | . 15 . . Terminals 19 | . 19 . . Fabricators . | . . . . Repair Stations 3 | . 3 . . Recycling Units 3 | . 3 . . Scanalyzers . | . . . . Garrison Access . | . . . . Terminal Hacks 5 | . 4 . 1 Robot Analysis 1 | . 1 . . Locate Traps 1 | . 1 . . Hauler Manifests 1 | . 1 . . Registered Components 1 | . 1 . . Proto ID Catalog 1 | . . . 1 Fabricator Hacks . | . . . . Repair Station Hacks 2 | . 2 . . Refit 2 | . 2 . . Recycling Unit Hacks 2 | . 2 . . Retrieve Components 2 | . 2 . . Scanalyzer . | . . . . Garrison Access Hacks . | . . . . Unauthorized Hacks 4 | . 4 . . Terminals 4 | . 4 . . Botnet 4 | . 4 . . Fabricators . | . . . . Repair Stations . | . . . . Recycling Units . | . . . . Scanalyzers . | . . . . Garrison Access . | . . . . Data Cores Recovered . | . . . . Used . | . . . . Hacking Detections 7 | . 7 . . Full Trace Events . | . . . . Feedback Events . | . . . . Feedback Blocked . | . . . . Robot Schematics Acquired . | . . . . Robots Built . | . . . . Authchips . | . . . . Time . | . . . . Total Robot Build Rating . | . . . . Part Schematics Acquired . | . . . . Parts Built . | . . . . Authchips . | . . . . Time . | . . . . Total Part Build Rating . | . . . . Part Studies Acquired . | . . . . Parts Repaired . | . . . . Time . | . . . . Parts Recycled . | . . . . Recycled Matter . | . . . . Retrieved Matter . | . . . . Retrieved Components 14 | . 14 . . Parts Scanalyzed . | . . . . Part Schematics Acquired . | . . . . Parts Damaged . | . . . . Bothacking | -11 -10 -10 -10 ------------ Run | Yrd Mat Min Sub Used RIF Installer . | . . . . Robots Hacked . | . . . . Non-combat . | . . . . Combat . | . . . . Robot Hacks Applied . | . . . . Relay Couplers Released . | . . . . Fabnet Peak Effective % . | . . . . Robots Rewired . | . . . . Allies Hacked . | . . . . Hacks Repelled . | . . . . Allies | -11 -10 -10 -10 -------- Run | Yrd Mat Min Sub Total Allies 4 | . . 4 . Largest Group 4 | . . 4 2 Highest-Rated Group 71 | . . 71 24 Highest-Rated Ally 31 | . . 31 16 Total Orders . | . . . . Ally Attacks 26 | . . 13 13 Total Damage 297 | . . 153 144 Kills 4 | . . 3 1 Allies Corrupted . | . . . . Allies Melted . | . . . . Intel | -11 -10 -10 -10 ------- Run | Yrd Mat Min Sub Active Infowar (turns) 848 | . . 848 . Seismic 848 | . . 848 . Robot Analysis Total 1 | . 1 . . Derelict Logs Recovered 3 | . . 1 2 Drone Launches . | . . . . Drone Recoveries . | . . . . Exploration | -11 -10 -10 -10 ------------- Run | Yrd Mat Min Sub Turns Passed 2543 | 42 1010 891 600 Spaces Moved 1859 | 34 625 719 481 Core 16 | 2 14 . . Treads . | . . . . Legs . | . . . . Wheels 1843 | 32 611 719 481 Hover . | . . . . Flight . | . . . . Fastest Speed 50 | 50 50 115 115 Average Speed 113 | 97 112 115 115 Slowest Speed 130 | 100 130 115 115 Overloaded Moves . | . . . . Propulsion Burnouts . | . . . . Robots Hopped . | . . . . Potential Cave-ins . | . . . . Cave-ins Triggered . | . . . . Exploration Rate (%) 52 | 3 85 99 21 Regions Visited 3 Branch Regions 2 Pre-discovered Areas 4 | . . 2 2 Known Exits Taken . | . . . . Unknown Exits Taken 3 | 1 1 1 . Scrap Searched 6 | . . 3 3 Spaces Dug . | . . . . Terrain Destroyed . | . . . . Melee . | . . . . Projectile . | . . . . AOE . | . . . . Terrain Rammed . | . . . . Walls Destroyed . | . . . . Machines Disabled . | . . . . Actions | -11 -10 -10 -10 --------- Run | Yrd Mat Min Sub Total 2129 | 40 793 783 513 Wait 111 | . 42 55 14 Move 1856 | 33 624 718 481 Hop . | . . . . Pick Up 18 | 1 8 6 3 Fast Attach 21 | 6 12 . 3 Attach 1 | . 1 . . Detach 1 | . 1 . . Swap 4 | . 2 2 . Drop 15 | . 10 2 3 Fire 102 | . 93 . 9 Melee . | . . . . Ram . | . . . . Kick . | . . . . Crush . | . . . . Escape Stasis . | . . . . Rewire . | . . . . Trap . | . . . . Miscellaneous . | . . . . Route ------- -11/Scrapyard -10/Materials (discovered 3 exits: [*Mat x2] / [*Min]) -10/Mines (discovered 3 exits: [*Mat x2] / *Sub) -10/Subcaves History --------- Turn | Location | Event 26 | -11/Scrapyard | Discovered new exit (range 13) 43 | -11/Scrapyard | Entered Materials 251 | -10/Materials | Destroyed 7 combat bots 310 | -10/Materials | Core integrity fell below 50% 338 | -10/Materials | Lost 3 parts (1p2n) 410 | -10/Materials | Discovered new exit (range 8) 616 | -10/Materials | Discovered new exit (range 16) 676 | -10/Materials | Discovered new exit (range 6) 697 | -10/Materials | Build established: Mutant 778 | -10/Materials | Core integrity fell below 20% 1053 | -10/Materials | Entered Mines 1106 | -10/Mines | Learned location of Mines (-9) 1117 | -10/Mines | Found a Scrap Suit stashed away for nefarious purposes 1119 | -10/Mines | Found Scrap Suit 1161 | -10/Mines | Assisted by bots powering up and referring to "LRC-V3" 1282 | -10/Mines | Met a Derelict testing a Signal Generator 1292 | -10/Mines | Discovered new exit (range 15) 1296 | -10/Mines | Learned location of Storage (-7) 1389 | -10/Mines | Build established: Scavenger-Mutant 1674 | -10/Mines | Discovered new exit (range 9) 1932 | -10/Mines | Discovered new exit (range 6) 1944 | -10/Mines | Entered Subcaves 1944 | -10/Subcaves | Accompanied by 2 allies 1945 | -10/Subcaves | Approached by a straggling Scientist 1947 | -10/Subcaves | Learned location of Mines (-10) 2081 | -10/Subcaves | Visited 4L-MR0's lab 2095 | -10/Subcaves | Found Flightbrick 2225 | -10/Subcaves | Build established: Mutant 2544 | -10/Subcaves | Destroyed by QI-6Q0(R) with Subdweller Laser Last Messages --------------- 02274_ Acquired 3 matter. 02275_ Acquired 2 matter. 02276_ Acquired 1 matter. PY-0EA(c): "I think it's somewhere northeast of here" 02345_ System corrupted: Heat flow error (+203). PY-0EA(c): "I think it's somewhere northeast of here" 02362_ System corrupted: IFF burst signal emitted. 02396_ System corrupted: Matter fused (-9). PY-0EA(c): "I think it's somewhere east of here" 02446_ System corrupted: Heat flow error (+182). PY-0EA(c): "I think it's somewhere east of here" 02479_ Trooper 1b suffers critical hit (Destroy). 02481_ Trooper 1b destroyed. PY-0EA(c): "I think it's somewhere east of here" 02530_ Acquired Mak. Light Armor Plating. 02532_ PY-0EA(c) destroyed. Map ----- +----------------------------------------------------+ | ????????????????????????? ???## | | ????????????????????????## #???# | | ????????????????????????# #???## | | ????????????????????????? #????# | | ?????????????????????????# ????# ## | | ????????????????????????## ????# ### | | ????????????????????????# ##??## | | ????????????????????????# #### | | ????????????????????????# ## | | ?????????????????????????# | | ?????????????????????????# ## | | ?????????????????????? ## ##### | | ????????????????????# ## #???? | | ????????????????????# ### ## #??? | | ????????????????????# ###### #####??? | | ???????????????##???## #???## ##?????? | | ??????????????## #???#####?## ##????? | | ??????????????# ##???# ### #????? | | ???????????????# #??## ## #???? | | ??????????????## #### #### ##???? | | ????????####### ##??# ##????? | | ????????#" " "### ##???####?????? | | ?????#### " %"### ## #?????????????# | | ?????#""# ##% ]"## ### ####?????????????# | | ?????# #+## [ "## R### #????????????????# | | ?????#" ##" "#@ #?# #???????????????# | | ?????#" #### ## % ### #??????????????? | | ?????#"" #?# #< ! ## #??????????????? | | ?????#"X #?# ### ??????????????? | | ?????#"" #?# #?####?????????????# | | ?????#" ### # < #?????????????###?## | | ?????## ##" ###< #????????????## #?# | | ?????#" ####" ## #???????###### #?# | | ?????# ####[]"### ##?###??## ### | | ?????#####"%"##### ##?## #### "" # | | ?????????#####??# #### " | | ????????????????## "" | | ?????????????????## " | | ??????????????????## ### | | ???????????????????#### ### """ | | ??????????????????????## """" | | ???????????????????????# """#### | | ??????????????????# &%##?## | | ?????????????????# ## % #### | | ?????????????????# ### ## | | ?????????????????# #?## | | ????????????????# #?# # ## | | ????????????????# ### #?#" ### ## | | ????????????????#### #?##### # # | | ???????????????????# ???# ## # | +----------------------------------------------------+ Best States ------------- Heat Dissipation 25 Energy Generation 10 Energy Capacity 250 Matter Stores 300 Matter Capacity 300 Sight Range 16 Terrain Scan Density 10 Armor Coverage 150 Core Shielding 20 Evasion (%) 50 Targeting Accuracy 5 Item Schematics ----------------- None Robot Schematics ------------------ None Fabricated ------------ Nothing Repaired ---------- Nothing Studied --------- None Alien Tech Used ----------------- None Achievements -------------- None Challenges ------------ None Game ------ Seed GunNanofilamentsDetector Manual? 0 Play Time 00:17:21 Cumulative 359.1 hours Start 2026.01.01 @ 02:33:23 End 2026.01.01 @ 02:50:06 Sessions 1 Manual Loads 0 Difficulty Rogue Special Mode None Game No. 129 Rogue 129 Adventurer 0 Explorer 0 Win Type - Total 7 Types 5/0/0/0/0/0/0/1/0/1 Lore% 79 Gallery% 76 Achievement% 65 Wizard Run 0 Options --------- Layout 1 ASCII 0 Keyboard 0 Movement Mouse Keybinds 0 Fullscreen 2 Font 32/SmallcapsGlow Map View 50x35 Zoom Use 0% Tactical HUD 1 Map Filters NONE Filters NONE Steam 1 RUN: b4e44ef3-06f3-4611-8baa-e3eb1a3423f7